fUST/lending_fUST_20250812
["ID","MTS","AMOUNT","RATE_DAILY","PERIOD"]
[378656183,1754945449735,-629.71,0.00019178,2]
[378656184,1754945449748,-498.39,0.00019178,2]
[378656185,1754945449760,-460.0,0.00019178,2]
[378656186,1754945449770,-1461.65,0.00019178,2]
[378656187,1754945449780,-460.0,0.00019178,2]
[378656188,1754945449791,-460.0,0.00019178,2]
[378656189,1754945449801,-859.41,0.00019178,2]
[378656190,1754945449811,-460.0,0.00019178,2]
[378656191,1754945449821,-460.0,0.00019178,2]
[378656192,1754945449831,-460.0,0.00019178,2]
[378656193,1754945449842,-460.0,0.00019178,2]
[378656194,1754945449852,-722.96,0.00019178,2]
[378656195,1754945449863,-460.0,0.00019178,2]
[378656196,1754945449873,-460.0,0.00019178,2]
[378656197,1754945449882,-1245.06,0.00019178,2]
[378656198,1754945449892,-460.0,0.00019178,2]
[378656199,1754945449902,-460.0,0.00019178,2]
[378656200,1754945449912,-722.65,0.00019178,2]
[378656201,1754945449922,-2335.86,0.00019178,2]
[378656202,1754945449933,-642.41,0.00019178,2]
[378656203,1754945449943,-1564.39,0.00019178,2]
[378656204,1754945449953,-460.0,0.00019178,2]
[378656205,1754945449964,-460.0,0.00019178,2]
[378656206,1754945450238,-922.85,0.00019178,2]
[378656207,1754945450255,-460.0,0.00019178,2]
[378656208,1754945450264,-1365.86,0.00019178,2]
[378656209,1754945450273,-460.0,0.00019178,2]
[378656210,1754945450283,-460.0,0.00019178,2]
[378656211,1754945450292,-460.0,0.00019178,2]
[378656212,1754945450301,-460.0,0.00019178,2]
[378656213,1754945450310,-164.95449475,0.00019178,2]
[378656214,1754945450319,-460.0,0.00019178,2]
[378656215,1754945450329,-460.0,0.00019178,2]
[378656216,1754945450338,-615.31,0.00019178,2]
[378656217,1754945450348,-460.0,0.00019178,2]
[378656218,1754945450357,-2861.59,0.00019178,2]
[378656219,1754945450366,-460.0,0.00019178,2]
[378656220,1754945450376,-460.0,0.00019178,2]
[378656221,1754945450386,-460.0,0.00019178,2]
[378656222,1754945450396,-204.753215,0.00019178,2]
[378656223,1754945450406,-701.7,0.00019178,2]
[378656224,1754945450415,-3796.2,0.00019178,2]
[378656225,1754945450425,-460.0,0.00019178,2]
[378656226,1754945450434,-460.0,0.00019178,2]
[378656227,1754945450445,-465.8290544,0.00019178,2]
[378656228,1754945450455,-815.25,0.00019178,2]
[378656229,1754945450464,-460.0,0.00019178,2]
[378656230,1754945450474,-460.0,0.00019178,2]
[378656231,1754945450484,-460.0,0.00019178,2]
[378656232,1754945450493,-1431.88,0.00019178,2]
[378656233,1754945450504,-460.0,0.00019178,2]
[378656234,1754945450514,-496.33,0.00019178,2]
[378656235,1754945450524,-1072.08,0.00019178,2]
[378656236,1754945450534,-4499.32,0.00019178,2]
[378656237,1754945450543,-593.81,0.00019178,2]
[378656238,1754945450555,-460.0,0.00019178,2]
[378656239,1754945450564,-2092.82,0.00019178,2]
[378656240,1754945450574,-645.91,0.00019178,2]
[378656241,1754945450583,-462.42643874,0.00019178,2]
[378656242,1754945450592,-460.0,0.00019178,2]
[378656243,1754945450602,-1533.85,0.00019178,2]
[378656244,1754945450611,-1591.33,0.00019178,2]
[378656245,1754945450622,-460.0,0.00019178,2]
[378656246,1754945450632,-460.0,0.00019178,2]
[378656247,1754945450642,-462.33447826,0.00019178,2]
[378656248,1754945450652,-1056.75,0.00019178,2]
[378656249,1754945450662,-560.46,0.00019178,2]
[378656250,1754945450671,-460.0,0.00019178,2]
[378656251,1754945450681,-460.0,0.00019178,2]
[378656252,1754945450690,-460.0,0.00019178,2]
[378656253,1754945450699,-500.0,0.00019178,2]
[378656254,1754945450708,-5000.0,0.00019178,2]
[378656255,1754945450719,-5000.0,0.00019178,2]
[378656256,1754945450730,-666.0,0.00019178,2]
[378656257,1754945450740,-2264.10087164,0.00019221,2]
[378656258,1754945450750,-2347.87260389,0.00019276,2]
[378656259,1754945450759,-160.0,0.00019323,2]
[378656260,1754945450768,-160.0,0.00019323,2]
[378656261,1754945450778,-216.68257536,0.00019323,2]
[378656262,1754945450788,-160.0,0.00019323,2]
[378656263,1754945450796,-527.9539256,0.00019323,2]
[378656264,1754945450806,-231.9940742,0.00019323,2]
[378656265,1754945450815,-843.18994796,0.00019323,2]
[378656266,1754945450824,-461.69158338,0.00019323,2]
[378656267,1754945450834,-12671.21867243,0.00019323,2]
[378656268,1754945450843,-160.0,0.00019323,2]
[378656269,1754945450853,-160.0,0.00019323,2]
[378656270,1754945450862,-417.15472785,0.00019323,2]
[378656271,1754945450871,-160.0,0.00019323,2]
[378656272,1754945450880,-215.4905783,0.00019323,2]
[378656273,1754945450889,-160.0,0.00019323,2]
[378656274,1754945450898,-160.0,0.00019323,2]
[378656275,1754945450907,-100000.0,0.00019329,2]
[378656276,1754945450916,-2434.74389024,0.00019331,2]
[378656277,1754945450926,-182.264,0.00019373,2]
[378656278,1754945450935,-2524.82941417,0.00019386,2]
[378656279,1754945450945,-636.0,0.00019419,2]
[378656280,1754945450954,-971.0,0.00019419,2]
[378656281,1754945450963,-2151.0,0.00019419,2]
[378656282,1754945450972,-250.0,0.00019419,2]
[378656283,1754945450981,-2618.2481025,0.00019441,2]
[378656284,1754945450990,-460.0,0.00019452,2]
[378656285,1754945450999,-460.0,0.00019452,2]
[378656286,1754945451008,-460.0,0.00019452,2]
[378656287,1754945451017,-460.0,0.00019452,2]
[378656288,1754945451027,-460.0,0.00019452,2]
[378656289,1754945451036,-547.55,0.00019452,2]
[378656290,1754945451046,-1330.2,0.00019452,2]
[378656291,1754945451055,-460.0,0.00019452,2]
[378656292,1754945451064,-460.0,0.00019452,2]
[378656293,1754945451073,-769.27,0.00019452,2]
[378656294,1754945451083,-460.0,0.00019452,2]
[378656295,1754945451092,-460.0,0.00019452,2]
[378656296,1754945451102,-472.5920764,0.00019452,2]
[378656297,1754945451111,-534.06432191,0.00019452,2]
[378656298,1754945451121,-460.0,0.00019452,2]
[378656299,1754945451130,-460.0,0.00019452,2]
[378656300,1754945451139,-753.59,0.00019452,2]
[378656301,1754945451149,-460.0,0.00019452,2]
[378656302,1754945451164,-460.0,0.00019452,2]
[378656303,1754945451174,-679.71,0.00019452,2]
[378656304,1754945451183,-460.0,0.00019452,2]
[378656305,1754945451193,-460.0,0.00019452,2]
[378656306,1754945451203,-460.0,0.00019452,2]
[378656307,1754945451212,-460.0,0.00019452,2]
[378656308,1754945451221,-460.0,0.00019452,2]
[378656309,1754945451231,-856.32,0.00019452,2]
[378656310,1754945451240,-460.0,0.00019452,2]
[378656311,1754945451250,-460.0,0.00019452,2]
[378656312,1754945451259,-513.37,0.00019452,2]
[378656313,1754945451268,-551.67,0.00019452,2]
[378656314,1754945451277,-675.33,0.00019452,2]
[378656315,1754945451286,-500.15,0.00019452,2]
[378656316,1754945451296,-460.0,0.00019452,2]
[378656317,1754945451305,-460.0,0.00019452,2]
[378656318,1754945451314,-460.0,0.00019452,2]
[378656319,1754945451324,-460.0,0.00019452,2]
[378656320,1754945451333,-594.54,0.00019452,2]
[378656321,1754945451343,-460.0,0.00019452,2]
[378656322,1754945451352,-460.0,0.00019452,2]
[378656323,1754945451362,-460.0,0.00019452,2]
[378656324,1754945451372,-772.93,0.00019452,2]
[378656325,1754945451381,-540.756357,0.00019452,2]
[378656326,1754945451391,-460.0,0.00019452,2]
[378656327,1754945451400,-460.0,0.00019452,2]
[378656328,1754945451410,-460.0,0.00019452,2]
[378656329,1754945451420,-4603.73,0.00019452,2]
[378656330,1754945451430,-460.0,0.00019452,2]
[378656331,1754945451439,-460.0,0.00019452,2]
[378656332,1754945451449,-460.0,0.00019452,2]
[378656333,1754945451458,-3358.5,0.00019452,2]
[378656334,1754945451468,-474.39,0.00019452,2]
[378656335,1754945451477,-619.48,0.00019452,2]
[378656336,1754945451487,-460.0,0.00019452,2]
[378656337,1754945451496,-1123.35,0.00019452,2]
[378656338,1754945451505,-490.96594389,0.00019452,2]
[378656339,1754945451516,-460.0,0.00019452,2]
[378656340,1754945451525,-460.0,0.00019452,2]
[378656341,1754945451535,-460.0,0.00019452,2]
[378656342,1754945451544,-294.26405927,0.00019452,2]
[378656343,1754945451553,-553.92,0.00019452,2]
[378656344,1754945451563,-460.0,0.00019452,2]
[378656345,1754945451572,-460.0,0.00019452,2]
[378656346,1754945451582,-2454.43,0.00019452,2]
[378656347,1754945451591,-532.63,0.00019452,2]
[378656348,1754945451601,-917.86,0.00019452,2]
[378656349,1754945451610,-460.0,0.00019452,2]
[378656350,1754945451619,-625.58,0.00019452,2]
[378656351,1754945451628,-460.0,0.00019452,2]
[378656352,1754945451638,-460.0,0.00019452,2]
[378656353,1754945451647,-670.78,0.00019452,2]
[378656354,1754945451657,-460.0,0.00019452,2]
[378656355,1754945451666,-460.0,0.00019452,2]
[378656356,1754945451678,-1595.07,0.00019452,2]
[378656357,1754945451689,-460.0,0.00019452,2]
[378656358,1754945451699,-460.0,0.00019452,2]
[378656359,1754945451709,-1407.26,0.00019452,2]
[378656360,1754945451719,-460.0,0.00019452,2]
[378656361,1754945451729,-460.0,0.00019452,2]
[378656362,1754945451739,-460.0,0.00019452,2]
[378656363,1754945451749,-460.0,0.00019452,2]
[378656364,1754945451759,-460.0,0.00019452,2]
[378656365,1754945451770,-460.0,0.00019452,2]
[378656366,1754945451781,-609.86,0.00019452,2]
[378656367,1754945451791,-560.51044082,0.00019452,2]
[378656368,1754945451802,-460.0,0.00019452,2]
[378656369,1754945451812,-966.66,0.00019452,2]
[378656370,1754945451822,-460.0,0.00019452,2]
[378656371,1754945451831,-460.0,0.00019452,2]
[378656372,1754945451840,-530.83,0.00019452,2]
[378656373,1754945451850,-460.0,0.00019452,2]
[378656374,1754945451859,-368.140198,0.00019452,2]
[378656375,1754945451868,-460.0,0.00019452,2]
[378656376,1754945451877,-460.0,0.00019452,2]
[378656377,1754945451887,-466.5,0.00019452,2]
[378656378,1754945451896,-213.41323439,0.00019452,2]
[378656379,1754945451905,-463.9,0.00019452,2]
[378656380,1754945451915,-468.7,0.00019452,2]
[378656381,1754945451924,-547.26,0.00019452,2]
[378656382,1754945451933,-536.01,0.00019452,2]
[378656383,1754945451943,-460.0,0.00019452,2]
[378656384,1754945451952,-647.57,0.00019452,2]
[378656385,1754945451962,-460.0,0.00019452,2]
[378656386,1754945451971,-460.0,0.00019452,2]
[378656387,1754945451980,-460.0,0.00019452,2]
[378656388,1754945451989,-460.0,0.00019452,2]
[378656389,1754945451998,-1769.16,0.00019452,2]
[378656390,1754945452008,-460.0,0.00019452,2]
[378656391,1754945452017,-681.77,0.00019452,2]
[378656392,1754945452027,-460.0,0.00019452,2]
[378656393,1754945452036,-460.0,0.00019452,2]
[378656394,1754945452046,-460.0,0.00019452,2]
[378656395,1754945452055,-460.0,0.00019452,2]
[378656396,1754945452065,-888.35,0.00019452,2]
[378656397,1754945452074,-460.0,0.00019452,2]
[378656398,1754945452083,-2167.58,0.00019452,2]
[378656399,1754945452092,-460.0,0.00019452,2]
[378656400,1754945452102,-460.0,0.00019452,2]
[378656401,1754945452111,-977.15,0.00019452,2]
[378656402,1754945452120,-944.5,0.00019452,2]
[378656403,1754945452129,-460.0,0.00019452,2]
[378656404,1754945452139,-460.0,0.00019452,2]
[378656405,1754945452149,-460.0,0.00019452,2]
[378656406,1754945452163,-553.25,0.00019452,2]
[378656407,1754945452172,-757.42,0.00019452,2]
[378656408,1754945452182,-281.9381021,0.00019452,2]
[378656409,1754945452191,-574.21,0.00019452,2]
[378656410,1754945452201,-460.0,0.00019452,2]
[378656411,1754945452210,-460.0,0.00019452,2]
[378656412,1754945452219,-460.0,0.00019452,2]
[378656413,1754945452229,-837.36,0.00019452,2]
[378656414,1754945452239,-1047.5,0.00019452,2]
[378656415,1754945452248,-460.0,0.00019452,2]
[378656416,1754945452257,-460.0,0.00019452,2]
[378656417,1754945452266,-460.0,0.00019452,2]
[378656418,1754945452275,-460.0,0.00019452,2]
[378656419,1754945452284,-460.0,0.00019452,2]
[378656420,1754945452293,-1818.61,0.00019452,2]
[378656421,1754945452302,-461.54,0.00019452,2]
[378656422,1754945452312,-460.0,0.00019452,2]
[378656423,1754945452322,-1104.61,0.00019452,2]
[378656424,1754945452331,-315.72086359,0.00019452,2]
[378656425,1754945452340,-1336.85,0.00019452,2]
[378656426,1754945452350,-460.0,0.00019452,2]
[378656427,1754945452359,-460.0,0.00019452,2]
[378656428,1754945452368,-460.0,0.00019452,2]
[378656429,1754945452378,-3284.18,0.00019452,2]
[378656430,1754945452387,-1186.11,0.00019452,2]
[378656431,1754945452396,-1266.67,0.00019452,2]
[378656432,1754945452406,-460.0,0.00019452,2]
[378656433,1754945452415,-460.0,0.00019452,2]
[378656434,1754945452425,-675.57,0.00019452,2]
[378656435,1754945452435,-460.0,0.00019452,2]
[378656436,1754945452444,-460.0,0.00019452,2]
[378656437,1754945452455,-596.19,0.00019452,2]
[378656438,1754945452464,-460.0,0.00019452,2]
[378656439,1754945452476,-460.0,0.00019452,2]
[378656440,1754945452550,-460.0,0.00019452,2]
[378656441,1754945452559,-460.0,0.00019452,2]
[378656442,1754945452568,-460.0,0.00019452,2]
[378656443,1754945452577,-460.0,0.00019452,2]
[378656444,1754945452587,-460.0,0.00019452,2]
[378656445,1754945452596,-460.0,0.00019452,2]
[378656446,1754945452606,-193.09875097,0.00019452,2]
[378656447,1754945452615,-460.0,0.00019452,2]
[378656448,1754945452625,-460.0,0.00019452,2]
[378656449,1754945452634,-460.0,0.00019452,2]
[378656450,1754945452644,-460.0,0.00019452,2]
[378656451,1754945452653,-814.02,0.00019452,2]
[378656452,1754945452663,-460.0,0.00019452,2]
[378656453,1754945452672,-705.17,0.00019452,2]
[378656454,1754945452681,-460.0,0.00019452,2]
[378656455,1754945452692,-460.0,0.00019452,2]
[378656456,1754945452701,-663.06,0.00019452,2]
[378656457,1754945452710,-460.0,0.00019452,2]
[378656458,1754945452719,-460.0,0.00019452,2]
[378656459,1754945452728,-2639.28,0.00019452,2]
[378656460,1754945452738,-460.0,0.00019452,2]
[378656461,1754945452747,-627.31,0.00019452,2]
[378656462,1754945452756,-801.34,0.00019452,2]
[378656463,1754945452766,-643.34,0.00019452,2]
[378656464,1754945452775,-539.83,0.00019452,2]
[378656465,1754945452784,-460.0,0.00019452,2]
[378656466,1754945452794,-460.0,0.00019452,2]
[378656467,1754945452803,-460.0,0.00019452,2]
[378656468,1754945452813,-460.0,0.00019452,2]
[378656469,1754945452822,-460.0,0.00019452,2]
[378656470,1754945452832,-2717.82,0.00019452,2]
[378656471,1754945452841,-460.0,0.00019452,2]
[378656472,1754945452850,-460.0,0.00019452,2]
[378656473,1754945452859,-764.48,0.00019452,2]
[378656474,1754945452868,-791.25,0.00019452,2]
[378656475,1754945452877,-1854.86,0.00019452,2]
[378656476,1754945452887,-495.99,0.00019452,2]
[378656477,1754945452896,-4188.79,0.00019452,2]
[378656478,1754945452905,-1200.89,0.00019452,2]
[378656479,1754945452914,-1782.77,0.00019452,2]
[378656480,1754945452923,-460.0,0.00019452,2]
[378656481,1754945452932,-460.0,0.00019452,2]
[378656482,1754945452942,-1397.24,0.00019452,2]
[378656483,1754945452951,-460.0,0.00019452,2]
[378656484,1754945452960,-460.0,0.00019452,2]
[378656485,1754945452969,-1451.4,0.00019452,2]
[378656486,1754945452978,-460.0,0.00019452,2]
[378656487,1754945452987,-1669.42,0.00019452,2]
[378656488,1754945452996,-460.0,0.00019452,2]
[378656489,1754945453006,-1107.27,0.00019452,2]
[378656490,1754945453017,-460.0,0.00019452,2]
[378656491,1754945453027,-460.0,0.00019452,2]
[378656492,1754945453038,-460.0,0.00019452,2]
[378656493,1754945453047,-2462.72,0.00019452,2]
[378656494,1754945453056,-460.0,0.00019452,2]
[378656495,1754945453066,-506.37,0.00019452,2]
[378656496,1754945453076,-453.71963572,0.00019452,2]
[378656497,1754945453085,-460.0,0.00019452,2]
[378656498,1754945453094,-282.70749764,0.00019452,2]
[378656499,1754945453104,-1300.89,0.00019452,2]
[378656500,1754945453113,-460.0,0.00019452,2]
[378656501,1754945453122,-5664.31,0.00019452,2]
[378656502,1754945453131,-460.0,0.00019452,2]
[378656503,1754945453141,-1572.07,0.00019452,2]
[378656504,1754945453150,-460.0,0.00019452,2]
[378656505,1754945453162,-460.0,0.00019452,2]
[378656506,1754945453171,-6198.04,0.00019452,2]
[378656507,1754945453180,-460.0,0.00019452,2]
[378656508,1754945453189,-460.0,0.00019452,2]
[378656509,1754945453199,-460.0,0.00019452,2]
[378656510,1754945453208,-460.0,0.00019452,2]
[378656511,1754945453217,-460.0,0.00019452,2]
[378656512,1754945453226,-460.0,0.00019452,2]
[378656513,1754945453237,-460.0,0.00019452,2]
[378656514,1754945453246,-1343.16,0.00019452,2]
[378656515,1754945453255,-460.0,0.00019452,2]
[378656516,1754945453264,-3255.13,0.00019452,2]
[378656517,1754945453273,-460.0,0.00019452,2]
[378656518,1754945453282,-762.57,0.00019452,2]
[378656519,1754945453291,-460.0,0.00019452,2]
[378656520,1754945453300,-460.0,0.00019452,2]
[378656521,1754945453309,-4269.65,0.00019452,2]
[378656522,1754945453318,-689.21,0.00019452,2]
[378656523,1754945453328,-460.0,0.00019452,2]
[378656524,1754945453336,-460.0,0.00019452,2]
[378656525,1754945453346,-987.94,0.00019452,2]
[378656526,1754945453355,-460.0,0.00019452,2]
[378656527,1754945453364,-460.0,0.00019452,2]
[378656528,1754945453373,-460.0,0.00019452,2]
[378656529,1754945453382,-460.0,0.00019452,2]
[378656530,1754945453391,-1234.81,0.00019452,2]
[378656531,1754945453401,-460.0,0.00019452,2]
[378656532,1754945453410,-1018.29,0.00019452,2]
[378656533,1754945453420,-460.0,0.00019452,2]
[378656534,1754945453430,-460.0,0.00019452,2]
[378656535,1754945453439,-460.0,0.00019452,2]
[378656536,1754945453448,-460.0,0.00019452,2]
[378656537,1754945453457,-460.0,0.00019452,2]
[378656538,1754945453466,-460.0,0.00019452,2]
[378656539,1754945453476,-3791.29,0.00019452,2]
[378656540,1754945453485,-629.71,0.00019452,2]
[378656541,1754945453494,-498.39,0.00019452,2]
[378656542,1754945453503,-460.0,0.00019452,2]
[378656543,1754945453513,-1461.65,0.00019452,2]
[378656544,1754945453522,-460.0,0.00019452,2]
[378656545,1754945453531,-460.0,0.00019452,2]
[378656546,1754945453540,-859.41,0.00019452,2]
[378656547,1754945453550,-460.0,0.00019452,2]
[378656548,1754945453559,-460.0,0.00019452,2]
[378656549,1754945453568,-460.0,0.00019452,2]
[378656550,1754945453577,-722.96,0.00019452,2]
[378656551,1754945453586,-460.0,0.00019452,2]
[378656552,1754945453595,-460.0,0.00019452,2]
[378656553,1754945453604,-1245.06,0.00019452,2]
[378656554,1754945453613,-460.0,0.00019452,2]
[378656555,1754945453623,-350.84355807,0.00019452,2]
[378656556,1754945453632,-722.65,0.00019452,2]
[378656557,1754945453642,-2335.86,0.00019452,2]
[378656558,1754945453651,-642.41,0.00019452,2]
[378656559,1754945453661,-1564.39,0.00019452,2]
[378656560,1754945453670,-493.04154211,0.00019452,2]
[378656561,1754945453679,-922.85,0.00019452,2]
[378656562,1754945453691,-460.0,0.00019452,2]
[378656563,1754945453700,-460.0,0.00019452,2]
[378656564,1754945453709,-1365.86,0.00019452,2]
[378656565,1754945453718,-460.0,0.00019452,2]
[378656566,1754945453729,-460.0,0.00019452,2]
[378656567,1754945453739,-487.53304859,0.00019452,2]
[378656568,1754945453749,-460.0,0.00019452,2]
[378656569,1754945453760,-460.0,0.00019452,2]
[378656570,1754945453770,-615.31,0.00019452,2]
[378656571,1754945453780,-460.0,0.00019452,2]
[378656572,1754945453788,-2861.59,0.00019452,2]
[378656573,1754945453798,-460.0,0.00019452,2]
[378656574,1754945453808,-460.0,0.00019452,2]
[378656575,1754945453818,-215.56961149,0.00019452,2]
[378656576,1754945453827,-701.7,0.00019452,2]
[378656577,1754945453836,-3796.2,0.00019452,2]
[378656578,1754945453846,-470.50531286,0.00019452,2]
[378656579,1754945453855,-460.0,0.00019452,2]
[378656580,1754945453865,-815.25,0.00019452,2]
[378656581,1754945453874,-460.0,0.00019452,2]
[378656582,1754945453883,-460.0,0.00019452,2]
[378656583,1754945453892,-1431.88,0.00019452,2]
[378656584,1754945453901,-460.0,0.00019452,2]
[378656585,1754945453910,-496.33,0.00019452,2]
[378656586,1754945453919,-1072.08,0.00019452,2]
[378656587,1754945453929,-4499.32,0.00019452,2]
[378656588,1754945453937,-593.81,0.00019452,2]
[378656589,1754945453947,-2092.82,0.00019452,2]
[378656590,1754945453956,-460.0,0.00019452,2]
[378656591,1754945453965,-645.91,0.00019452,2]
[378656592,1754945453974,-460.0,0.00019452,2]
[378656593,1754945453983,-1533.85,0.00019452,2]
[378656594,1754945453993,-1591.33,0.00019452,2]
[378656595,1754945454002,-460.0,0.00019452,2]
[378656596,1754945454011,-460.0,0.00019452,2]
[378656597,1754945454020,-1056.75,0.00019452,2]
[378656598,1754945454030,-560.46,0.00019452,2]
[378656599,1754945454039,-460.0,0.00019452,2]
[378656600,1754945454048,-460.0,0.00019452,2]
[378656601,1754945454057,-460.0,0.00019452,2]
[378656602,1754945454067,-500.0,0.00019452,2]
[378656603,1754945454076,-200.0,0.00019459,15]
[378656604,1754945454085,-200.0,0.00019459,15]
[378656605,1754945454095,-200.0,0.00019459,15]
[378656606,1754945454104,-200.0,0.00019459,15]
[378656607,1754945454114,-500.0,0.00019473,2]
[378656608,1754945454123,-500.0,0.00019473,2]
[378656609,1754945454132,-500.0,0.00019473,2]
[378656610,1754945454141,-478.50876385,0.00019473,2]
[378656611,1754945454150,-600.0,0.00019473,2]
[378656612,1754945454163,-471.67343445,0.00019473,2]
[378656613,1754945454172,-500.0,0.00019473,2]
[378656614,1754945454181,-500.0,0.00019473,2]
[378656615,1754945454190,-158.46621791,0.00019473,2]
[378656616,1754945454199,-160.06312042,0.00019473,2]
[378656617,1754945454209,-181.07257143,0.00019473,2]
[378656618,1754945454219,-500.0,0.00019473,2]
[378656619,1754945454231,-500.0,0.00019473,2]
[378656620,1754945454240,-157.96167722,0.00019473,2]
[378656621,1754945454250,-534.06675243,0.00019473,2]
[378656622,1754945454259,-158.46401038,0.00019473,2]
[378656623,1754945454268,-500.0,0.00019473,2]
[378656624,1754945454278,-500.0,0.00019473,2]
[378656625,1754945454287,-500.0,0.00019473,2]
[378656626,1754945454296,-500.0,0.00019473,2]
[378656627,1754945454305,-500.0,0.00019473,2]
[378656628,1754945454314,-500.0,0.00019473,2]
[378656629,1754945454323,-500.0,0.00019473,2]
[378656630,1754945454333,-500.0,0.00019473,2]
[378656631,1754945454342,-500.0,0.00019473,2]
[378656632,1754945454352,-500.0,0.00019473,2]
[378656633,1754945454361,-500.0,0.00019473,2]
[378656634,1754945454370,-500.0,0.00019473,2]
[378656635,1754945454380,-500.0,0.00019473,2]
[378656636,1754945454389,-500.0,0.00019473,2]
[378656637,1754945454399,-500.0,0.00019473,2]
[378656638,1754945454408,-500.0,0.00019473,2]
[378656639,1754945454418,-500.0,0.00019473,2]
[378656640,1754945454428,-500.0,0.00019473,2]
[378656641,1754945454437,-500.0,0.00019473,2]
[378656642,1754945454447,-500.0,0.00019473,2]
[378656643,1754945454456,-500.0,0.00019473,2]
[378656644,1754945454465,-500.0,0.00019473,2]
[378656645,1754945454475,-500.0,0.00019473,2]
[378656646,1754945454484,-500.0,0.00019473,2]
[378656647,1754945454494,-500.0,0.00019473,2]
[378656648,1754945454503,-500.0,0.00019473,2]
[378656649,1754945454512,-500.0,0.00019473,2]
[378656650,1754945454522,-162.28457996,0.00019473,2]
[378656651,1754945454531,-500.0,0.00019473,2]
[378656652,1754945454540,-2427.41899613,0.00019496,2]
[378656653,1754945454550,-500.0,0.00019586,2]
[378656654,1754945454559,-646.0,0.00019599,2]
[378656655,1754945454569,-646.0,0.00019629,2]
[378656656,1754945454578,-243.379697,0.00019664,2]
[378656657,1754945454588,-1000.0,0.00019687,5]
[378656658,1754945454598,-1400.0,0.00019712,2]
[378656659,1754945454607,-151.0,0.00019714,2]
[378656660,1754945454616,-646.0,0.00019719,2]
[378656661,1754945454625,-1000.0,0.00019721,2]
[378656662,1754945454635,-1000.0,0.00019721,2]
[378656663,1754945454644,-1000.0,0.00019721,2]
[378656664,1754945454653,-1000.0,0.00019721,2]
[378656665,1754945454663,-1000.0,0.00019721,2]
[378656666,1754945454673,-1000.0,0.00019721,2]
[378656667,1754945454683,-460.0,0.00019726,2]
[378656668,1754945454692,-460.0,0.00019726,2]
[378656669,1754945454702,-460.0,0.00019726,2]
[378656670,1754945454711,-254.58324595,0.00019726,2]
[378656671,1754945454720,-460.0,0.00019726,2]
[378656672,1754945454729,-547.55,0.00019726,2]
[378656673,1754945454739,-1330.2,0.00019726,2]
[378656674,1754945454748,-460.0,0.00019726,2]
[378656675,1754945454757,-460.0,0.00019726,2]
[378656676,1754945454766,-769.27,0.00019726,2]
[378656677,1754945454775,-460.0,0.00019726,2]
[378656678,1754945454785,-460.0,0.00019726,2]
[378656679,1754945454794,-460.0,0.00019726,2]
[378656680,1754945454803,-460.0,0.00019726,2]
[378656681,1754945454813,-753.59,0.00019726,2]
[378656682,1754945454822,-460.0,0.00019726,2]